bitfinex/quotes_BTCUSD_20240815
["timestamp","ask_amount","ask_price","bid_price","bid_amount"]
[1723688788808,0.119878,58393.0,58390.0,0.3752]
[1723688789008,0.119878,58393.0,58392.0,0.2353]
[1723688789209,0.119878,58393.0,58392.0,0.50392052]
[1723688789210,0.359631,58393.0,58392.0,0.50392052]
[1723688789668,0.119877,58393.0,58392.0,0.50392052]
[1723688790720,0.51466362,58405.0,58392.0,0.50392052]
[1723688790935,0.119877,58393.0,58392.0,0.33236598]
[1723688791151,0.359631,58393.0,58392.0,0.33736598]
[1723688791353,0.359631,58393.0,58392.0,0.34136598]
[1723688791786,0.599385,58393.0,58392.0,0.51292052]
[1723688791988,0.600208,58393.0,58392.0,0.51292052]
[1723688793532,0.360454,58393.0,58392.0,0.51292052]
[1723688795376,0.1207,58393.0,58392.0,0.51292052]
[1723688795592,0.000823,58393.0,58392.0,0.92032052]
[1723688795781,0.1207,58393.0,58392.0,0.92032052]
[1723688795984,0.360454,58393.0,58392.0,0.92032052]
[1723688796546,0.35818153,58393.0,58392.0,0.92032052]
[1723688797206,0.239742,58396.0,58392.0,0.92032052]
[1723688797207,0.239747,58395.0,58392.0,0.92032052]
[1723688797547,0.119875,58394.0,58393.0,0.28235659]
[1723688798046,0.359625,58394.0,58393.0,0.28235659]
[1723688799348,0.599375,58394.0,58393.0,0.28235659]
[1723688799501,0.359625,58394.0,58393.0,0.28235659]
[1723688799881,0.359625,58394.0,58393.0,0.28435659]
[1723688800284,0.359625,58394.0,58393.0,0.28735659]
[1723688802230,0.36888769,58394.0,58393.0,0.28735659]
[1723688803409,0.60863762,58394.0,58393.0,0.28735659]
[1723688803841,0.84838762,58394.0,58393.0,0.005]
[1723688804051,0.84838762,58394.0,58393.0,0.17655454]
[1723688804052,0.36888762,58394.0,58393.0,0.17655454]
[1723688804974,0.36888762,58394.0,58393.0,0.56495454]
[1723688805206,0.36888762,58394.0,58393.0,0.64497999]
[1723688805207,0.3688886,58394.0,58393.0,0.64497999]
[1723688805841,0.0092636,58394.0,58393.0,0.64497999]
[1723688806214,0.119875,58394.0,58393.0,0.64497999]
[1723688806417,0.239739,58397.0,58393.0,0.64497999]
[1723688806553,0.119875,58394.0,58393.0,0.47342545]
[1723688807303,0.359625,58394.0,58393.0,0.47342545]
[1723688807480,0.119875,58394.0,58393.0,0.47342545]
[1723688807883,0.359625,58394.0,58393.0,0.47342545]
[1723688808083,0.000822,58398.0,58394.0,0.1838]
[1723688808285,0.119871,58396.0,58395.0,0.27805296]
[1723688808487,0.359613,58396.0,58395.0,0.27805296]
[1723688809461,0.84836098,58396.0,58395.0,0.27805296]
[1723688809652,0.00926398,58396.0,58393.0,0.003]
[1723688809862,0.000822,58398.0,58393.0,0.003]
[1723688809863,0.839125,58394.0,58393.0,0.003]
[1723688810079,0.60863898,58394.0,58393.0,0.26875454]
[1723688810267,0.36888844,58394.0,58393.0,0.69352041]
[1723688810474,0.00926344,58394.0,58393.0,0.69052041]
[1723688810669,0.119875,58394.0,58393.0,0.88292041]
[1723688810892,0.000822,58398.0,58394.0,0.3978]
[1723688811014,0.359609,58397.0,58396.0,0.3978]
[1723688811209,0.359609,58397.0,58396.0,0.648417]
[1723688811510,0.599347,58397.0,58396.0,0.648417]
[1723688811914,0.599347,58397.0,58396.0,0.883717]
[1723688813978,0.000822,58398.0,58396.0,0.485917]
[1723688814184,0.000822,58398.0,58397.0,0.85628283]
[1723688814380,0.000822,58398.0,58397.0,0.83328283]
[1723688814381,0.120689,58398.0,58397.0,0.83328283]
[1723688814618,0.360423,58398.0,58397.0,0.83328283]
[1723688814762,0.600157,58398.0,58397.0,1.06858283]
[1723688815133,0.600157,58398.0,58397.0,0.88448283]
[1723688815548,0.839891,58398.0,58397.0,0.88448283]
[1723688815943,0.839891,58398.0,58397.0,0.89848283]
[1723688816151,0.601157,58398.0,58397.0,0.91048283]
[1723688818374,0.61042111,58398.0,58397.0,0.91048283]
[1723688818795,0.6104209,58398.0,58397.0,0.91048283]
[1723688820953,0.601157,58398.0,58397.0,0.91048283]
[1723688821154,0.61042076,58398.0,58397.0,0.91048283]
[1723688822305,0.85015476,58398.0,58397.0,0.91048283]
[1723688823505,0.85015476,58398.0,58397.0,0.026]
[1723688824158,0.840891,58398.0,58397.0,0.026]
[1723688824370,0.85015458,58398.0,58397.0,0.026]
[1723688825443,0.85015518,58398.0,58397.0,0.026]
[1723688826015,0.84994905,58398.0,58397.0,0.026]
[1723688826197,0.84994905,58398.0,58397.0,0.06948712]
[1723688826650,0.61021492,58398.0,58397.0,0.24104166]
[1723688826857,0.61021492,58398.0,58397.0,0.62544166]
[1723688827457,0.36121687,58398.0,58397.0,0.81084166]
[1723688827658,0.60095087,58398.0,58397.0,0.81084166]
[1723688827860,0.36121687,58398.0,58397.0,0.81084166]
[1723688828464,0.61021482,58398.0,58397.0,0.81084166]
[1723688828820,0.25061382,58398.0,58397.0,0.81084166]
[1723688829012,0.37048082,58398.0,58397.0,1.04614166]
[1723688829152,0.60095087,58398.0,58397.0,1.04614166]
[1723688829366,0.61021283,58398.0,58397.0,1.04614166]
[1723688830417,0.61021283,58398.0,58397.0,0.81084166]
[1723688832544,0.36121687,58398.0,58397.0,0.81084166]
[1723688832925,0.60095087,58398.0,58397.0,0.81084166]
[1723688833139,0.36121687,58398.0,58397.0,0.81084166]
[1723688833353,0.61021012,58398.0,58397.0,0.81084166]
[1723688834172,0.84994412,58398.0,58397.0,0.62544166]
[1723688834344,0.61021012,58398.0,58397.0,0.62544166]
[1723688834560,0.84994412,58398.0,58397.0,0.62544166]
[1723688835126,0.84994529,58398.0,58397.0,0.62544166]
[1723688835878,0.61021129,58398.0,58397.0,0.62544166]
[1723688836480,0.84994529,58398.0,58397.0,0.62544166]
[1723688838068,0.61021129,58398.0,58397.0,0.62544166]
[1723688838673,0.61021199,58398.0,58397.0,0.62544166]
[1723688839155,0.84994586,58398.0,58397.0,0.62544166]
[1723688840561,0.37047786,58398.0,58397.0,0.62544166]
[1723688840775,0.13074386,58398.0,58397.0,0.62544166]
[1723688840982,0.13074386,58398.0,58397.0,0.81824166]
[1723688840983,0.37047786,58398.0,58397.0,0.81824166]
[1723688841183,0.61021186,58398.0,58397.0,0.81824166]
[1723688842358,0.61021132,58398.0,58397.0,0.81824166]
[1723688844474,0.84994532,58398.0,58397.0,0.62544166]
[1723688847040,0.84994532,58398.0,58397.0,0.026]
[1723688847041,1.08967932,58398.0,58397.0,0.026]
[1723688847245,2.65788347,58398.0,58397.0,0.026]
[1723688847458,3.27372181,58398.0,58397.0,0.026]
[1723688847665,0.480631,58393.0,58392.0,5e-07]
[1723688847871,0.480631,58393.0,58378.0,0.0009053]
[1723688847872,0.423856,58389.0,58378.0,0.0009053]
[1723688848086,1.8298919,58389.0,58388.0,3e-07]
[1723688848309,1.8298919,58389.0,58388.0,0.6016003]
[1723688848310,0.28541213,58389.0,58388.0,0.6016003]
[1723688848519,0.00161587,58398.0,58388.0,0.21851969]
[1723688848723,0.0092643,58397.0,58395.0,0.2353]
[1723688848926,0.119871,58396.0,58395.0,0.2353]
[1723688849133,0.359613,58396.0,58395.0,0.6372]
[1723688850179,0.359613,58396.0,58395.0,0.6442]
[1723688850386,0.599355,58396.0,58395.0,0.6372]
[1723688850599,0.839097,58396.0,58395.0,0.17155454]
[1723688850822,1.1302904,58396.0,58395.0,0.17655454]
[1723688851021,1.4854319,58396.0,58395.0,0.005]
[1723688851223,1.58644642,58396.0,58395.0,0.005]
[1723688851432,1.80911125,58396.0,58395.0,0.005]
[1723688851642,1.93077222,58396.0,58395.0,0.005]
[1723688851842,1.78044642,58396.0,58395.0,0.012]
[1723688852048,1.77944642,58396.0,58395.0,0.005]
[1723688852461,1.93077222,58396.0,58395.0,0.005]
[1723688852668,0.359656,58389.0,58388.0,3e-07]
[1723688852872,1.28258279,58389.0,58388.0,3e-07]
[1723688853086,1.68671183,58389.0,58388.0,3e-07]
[1723688853292,1.77660542,58389.0,58388.0,3e-07]
[1723688853495,2.80637642,58389.0,58388.0,3e-07]
[1723688853703,2.88974012,58389.0,58388.0,3e-07]
[1723688854153,3.07129466,58389.0,58388.0,3e-07]
[1723688854352,3.07129466,58389.0,58378.0,0.0009053]
[1723688854353,1.318966,58379.0,58378.0,0.0009053]
[1723688854588,2.54847398,58379.0,58378.0,0.0009053]
[1723688854770,1.65661604,58379.0,58378.0,0.0009053]
[1723688855191,1.75847409,58379.0,58378.0,0.0009053]
[1723688855800,1.75847409,58379.0,58378.0,0.0019053]
[1723688855801,1.543966,58379.0,58378.0,0.0019053]
[1723688857032,1.543966,58379.0,58378.0,0.0029053]
[1723688857033,1.557966,58379.0,58378.0,0.0029053]
[1723688859942,2.327966,58379.0,58378.0,0.0029053]
[1723688860563,2.33722725,58379.0,58378.0,0.0029053]
[1723688862408,2.43638755,58379.0,58378.0,0.0029053]
[1723688864024,2.4271263,58379.0,58378.0,0.0029053]
[1723688864227,2.43638821,58379.0,58378.0,0.0029053]
[1723688864944,2.33722791,58379.0,58378.0,0.0029053]
[1723688865585,2.74859445,58379.0,58378.0,0.0029053]
[1723688865800,0.119945,58360.0,58359.0,0.0009053]
[1723688865975,1.20487418,58360.0,58359.0,0.0009053]
[1723688866208,1.54476418,58360.0,58359.0,0.0009053]
[1723688866413,2.26443418,58360.0,58359.0,0.0009053]
[1723688866620,2.02454418,58360.0,58359.0,0.0009053]
[1723688866820,2.0245485,58360.0,58359.0,0.0009053]
[1723688867019,2.0245485,58360.0,58359.0,0.0049053]
[1723688867824,2.02454905,58360.0,58359.0,0.0049053]
[1723688868106,1.51443905,58360.0,58359.0,0.0049053]
[1723688868438,2.12874905,58360.0,58359.0,0.0049053]
[1723688868750,2.36963905,58360.0,58359.0,0.0009053]
[1723688868973,2.37063905,58360.0,58359.0,0.0009053]
[1723688869188,2.36963905,58360.0,58359.0,0.0009053]
[1723688869412,2.37963905,58360.0,58359.0,0.0009053]
[1723688869621,2.55119359,58360.0,58359.0,0.0009053]
[1723688869830,2.54119359,58360.0,58359.0,0.0009053]
[1723688871442,2.71274813,58360.0,58359.0,0.0009053]
[1723688871646,2.70348135,58360.0,58359.0,0.0009053]
[1723688872004,2.71274681,58360.0,58359.0,0.0009053]
[1723688872222,2.95263681,58360.0,58359.0,0.0009053]
[1723688872844,3.13553681,58360.0,58359.0,3e-07]
[1723688873546,3.13553681,58360.0,58355.0,8e-07]
[1723688873547,1.079577,58356.0,58355.0,8e-07]
[1723688873755,2.45372678,58356.0,58355.0,8e-07]
[1723688873953,0.663997,58353.0,58352.0,2.3e-07]
[1723688874176,2.454574,58353.0,58352.0,2.3e-07]
[1723688874377,2.694493,58353.0,58352.0,2.3e-07]
[1723688875776,1.329576,58352.0,58351.0,2.3e-07]
[1723688875980,2.56195054,58352.0,58351.0,2.3e-07]
[1723688876388,2.80187354,58352.0,58351.0,2.3e-07]
[1723688876817,3.00427354,58352.0,58351.0,2.3e-07]
[1723688877021,3.09147354,58352.0,58351.0,2.3e-07]
[1723688877830,3.69128154,58352.0,58351.0,2.3e-07]
[1723688878034,1.559844,58339.0,58336.0,0.009042]
[1723688878207,1.559844,58339.0,58333.0,1e-06]
[1723688878208,0.09577727,58337.0,58333.0,1e-06]
[1723688878408,0.09577727,58337.0,58331.0,0.0002]
[1723688878409,0.600012,58332.0,58331.0,1e-06]
[1723688878609,2.39084511,58332.0,58331.0,1e-06]
[1723688878818,2.63085011,58332.0,58331.0,1e-06]
[1723688879029,2.88585011,58332.0,58331.0,1e-06]
[1723688879405,2.88585011,58332.0,58309.0,0.00011]
[1723688879406,2.88585011,58332.0,58311.0,5e-07]
[1723688879407,0.36013,58312.0,58311.0,5e-07]
[1723688879616,0.360229,58296.0,58295.0,0.51466362]
[1723688879835,1.08995157,58296.0,58295.0,0.51466362]
[1723688880041,1.08995157,58296.0,58293.0,0.3857]
[1723688880042,0.840563,58294.0,58293.0,0.3857]
[1723688880265,0.840581,58293.0,58291.0,0.0002]
[1723688880472,1.180747,58293.0,58291.0,0.0002]
[1723688880676,0.940581,58293.0,58291.0,0.0002]
[1723688881567,0.360249,58293.0,58292.0,0.43182807]
[1723688881795,0.0642,58313.0,58292.0,0.43182807]
[1723688881796,0.00298374,58307.0,58294.0,0.1937]
[1723688882044,0.240125,58303.0,58302.0,0.576]
[1723688882309,0.08577727,58324.0,58302.0,0.576]
[1723688882310,0.240109,58307.0,58302.0,0.576]
[1723688882540,0.240065,58318.0,58304.0,0.4012]
[1723688882793,0.240065,58318.0,58294.0,0.12008]
[1723688882794,0.002983,58322.0,58309.0,0.384]
[1723688883030,0.120047,58311.0,58309.0,0.384]
[1723688883275,0.240018,58329.0,58309.0,0.384]
[1723688883276,0.240018,58329.0,58310.0,0.17155454]
[1723688883512,0.12004,58314.0,58311.0,0.3982]
[1723688883753,0.00298258,58333.0,58314.0,0.3982]
[1723688883997,0.00298258,58333.0,58316.0,0.3982]
[1723688883998,0.3601,58317.0,58316.0,0.3982]
[1723688884242,0.120033,58317.0,58316.0,0.3982]
[1723688884447,0.120033,58317.0,58316.0,0.40651078]
[1723688885072,0.3601,58317.0,58316.0,0.40651078]
[1723688885272,0.600167,58317.0,58316.0,0.40651078]
[1723688885500,0.842234,58317.0,58316.0,0.40651078]
[1723688885904,0.3621,58317.0,58316.0,0.40651078]
[1723688886114,0.002,58317.0,58316.0,0.46672186]
[1723688886542,0.3621,58317.0,58316.0,0.46672186]
[1723688886751,0.3621,58317.0,58316.0,0.40651078]
[1723688886958,0.122033,58317.0,58316.0,0.40651078]
[1723688887167,0.002,58317.0,58316.0,0.57806532]
[1723688887379,0.08577727,58343.0,58316.0,0.57806532]
[1723688887380,0.51466362,58339.0,58332.0,0.5936]
[1723688887581,0.51466362,58339.0,58333.0,0.3937]
[1723688887785,0.51466362,58339.0,58332.0,0.66645454]
[1723688887786,0.119989,58339.0,58335.0,0.3937]
[1723688888005,0.239951,58346.0,58336.0,0.17155454]
[1723688888210,0.239924,58352.0,58337.0,0.3902]
[1723688888421,0.35994,58343.0,58342.0,0.3902]
[1723688888833,0.359925,58346.0,58342.0,0.39847074]
[1723688889046,0.239952,58345.0,58343.0,0.03984707]
[1723688889288,0.239952,58345.0,58342.0,0.39847074]
[1723688889289,0.35994,58343.0,58342.0,0.39847074]
[1723688889491,0.5999,58343.0,58342.0,0.3902]
[1723688889912,0.83986,58343.0,58342.0,0.3902]
[1723688890951,0.35994,58343.0,58342.0,0.3902]
[1723688891362,0.36494,58343.0,58342.0,0.3902]
[1723688891564,0.6049,58343.0,58342.0,0.3902]
[1723688891794,0.6049,58343.0,58336.0,0.0009053]
[1723688891795,0.59996,58337.0,58336.0,0.0009053]
[1723688892004,1.079928,58337.0,58336.0,0.0009053]
[1723688892218,0.939944,58337.0,58336.0,0.0009053]
[1723688892451,1.18919643,58337.0,58336.0,0.0009053]
[1723688892667,1.18919679,58337.0,58336.0,0.0009053]
[1723688893087,1.179928,58337.0,58336.0,0.0009053]
[1723688893304,0.61622899,58337.0,58336.0,0.4129053]
[1723688893519,0.846944,58337.0,58336.0,0.4129053]
[1723688893947,0.846944,58337.0,58336.0,0.0009053]
[1723688893948,0.85821234,58337.0,58336.0,0.0009053]
[1723688894583,0.85621234,58337.0,58336.0,0.0009053]
[1723688894784,1.10519634,58337.0,58336.0,0.0009053]
[1723688895957,0.86521234,58337.0,58336.0,0.0009053]
[1723688896203,0.848944,58337.0,58336.0,0.0009053]
[1723688896436,0.87121302,58337.0,58336.0,0.0009053]
[1723688896640,0.86221302,58337.0,58336.0,0.0009053]
[1723688896794,0.86221302,58337.0,58336.0,0.4093053]
[1723688897102,0.86221302,58337.0,58336.0,0.5914053]
[1723688897103,0.03626902,58337.0,58336.0,0.5914053]
[1723688897299,0.027,58337.0,58336.0,0.76295984]
[1723688897534,0.132992,58337.0,58336.0,0.76295984]
[1723688897768,0.239978,58339.0,58337.0,0.3963]
[1723688897966,0.239978,58339.0,58337.0,0.56785454]
[1723688898169,0.119988,58339.0,58338.0,0.10458598]
[1723688898371,0.359964,58339.0,58338.0,0.10458598]
[1723688898887,0.359964,58339.0,58337.0,0.56785454]
[1723688898888,0.35997,58338.0,58337.0,0.56785454]
[1723688899111,0.35997,58338.0,58336.0,0.0009053]
[1723688899112,0.87577727,58338.0,58336.0,0.0009053]
[1723688899342,0.60922932,58337.0,58336.0,0.0009053]
[1723688899555,0.92871398,58337.0,58336.0,0.0009053]
[1723688899739,0.84921332,58337.0,58336.0,0.0009053]
[1723688901513,0.84921332,58337.0,58336.0,0.0029053]
[1723688902137,0.85003732,58337.0,58336.0,0.0029053]
[1723688902346,0.85003732,58337.0,58336.0,0.3939053]
[1723688902347,0.37006932,58337.0,58336.0,0.3939053]
[1723688902568,0.61005332,58337.0,58336.0,0.3939053]
[1723688902766,0.600784,58337.0,58336.0,0.3939053]
[1723688903388,0.600784,58337.0,58336.0,0.5783053]
[1723688903801,0.3608,58337.0,58336.0,0.5783053]
[1723688904023,0.000824,58337.0,58336.0,0.74985984]
[1723688904850,0.120816,58337.0,58336.0,0.74985984]
[1723688905164,0.000824,58337.0,58336.0,0.74985984]
[1723688905366,0.000824,58337.0,58336.0,0.82484582]
[1723688905819,0.4726,58357.0,58336.0,0.27244582]
[1723688906019,0.0092742,58356.0,58352.0,0.3848]
[1723688906221,0.51466362,58358.0,58355.0,0.3848]
[1723688906422,0.239876,58364.0,58357.0,0.3848]
[1723688906649,0.4726,58371.0,58359.0,0.3848]
[1723688906650,0.119945,58360.0,58359.0,0.3848]
[1723688907004,0.359835,58360.0,58359.0,0.3848]
[1723688907320,0.599725,58360.0,58359.0,0.3848]
[1723688907527,0.23987,58365.0,58354.0,0.5796]
[1723688907528,0.08577727,58365.0,58354.0,0.5796]
[1723688907685,0.08577727,58365.0,58354.0,0.3943]
[1723688907686,0.68555227,58355.0,58354.0,0.3943]
[1723688907880,0.119955,58355.0,58354.0,0.3943]
[1723688908107,0.119953,58356.0,58354.0,0.56585454]
[1723688908385,0.239895,58359.0,58354.0,0.56585454]
[1723688908517,0.239895,58359.0,58355.0,0.4039]
[1723688908718,0.119953,58356.0,58355.0,0.4039]
[1723688908920,0.11995,58358.0,58355.0,0.4039]
[1723688909121,0.119953,58356.0,58355.0,0.4039]
[1723688909328,0.119949,58358.0,58357.0,0.4039]
[1723688909512,0.119949,58358.0,58357.0,0.57545454]
[1723688909717,0.359847,58358.0,58357.0,0.65121999]
[1723688910052,0.599745,58358.0,58357.0,0.4039]
[1723688910406,0.359847,58358.0,58357.0,0.4039]
[1723688910623,0.239875,58364.0,58357.0,0.57545454]
[1723688910831,0.012,58359.0,58358.0,0.57545454]
[1723688911027,0.359841,58359.0,58358.0,0.66321569]
[1723688911220,0.599735,58359.0,58358.0,0.66321569]
[1723688911614,0.599735,58359.0,58358.0,0.57545454]
[1723688912197,0.601735,58359.0,58358.0,0.57545454]
[1723688912816,0.002,58359.0,58358.0,0.57545454]
[1723688913018,0.121947,58359.0,58358.0,0.57545454]
[1723688913218,0.364841,58359.0,58358.0,0.57545454]
[1723688913583,0.364841,58359.0,58358.0,0.65121999]
[1723688913796,0.604735,58359.0,58358.0,0.4039]
[1723688914901,0.604735,58359.0,58343.0,0.71406495]
[1723688914902,0.119957,58354.0,58353.0,0.3917]
[1723688915106,0.35994,58343.0,58342.0,0.198]
[1723688915339,0.4776,58359.0,58342.0,0.36955454]
[1723688915541,0.4776,58359.0,58348.0,0.3917]
[1723688915542,0.00927646,58358.0,58348.0,0.3917]
[1723688915767,0.00927646,58358.0,58354.0,0.3917]
[1723688916006,0.005,58359.0,58357.0,0.3917]
[1723688916007,0.003,58359.0,58357.0,0.3917]
[1723688916281,0.000824,58364.0,58358.0,0.3917]
[1723688916282,0.120761,58364.0,58358.0,0.3917]
[1723688916494,0.000824,58364.0,58363.0,1.004639]
[1723688916700,0.000824,58364.0,58363.0,1.17619354]
[1723688916917,0.000824,58364.0,58363.0,1.49105752]
[1723688917307,0.000824,58364.0,58363.0,1.73093552]
[1723688918158,0.000824,58364.0,58363.0,1.75493552]
[1723688919248,0.000824,58364.0,58363.0,1.51505752]
[1723688919714,0.001824,58364.0,58363.0,1.51505752]
[1723688920605,0.001824,58364.0,58363.0,1.27517952]
[1723688920868,0.001824,58364.0,58363.0,1.13224052]
[1723688921072,0.001824,58364.0,58363.0,1.25217952]
[1723688921790,0.001824,58364.0,58363.0,1.05725454]
[1723688921791,0.361633,58364.0,58363.0,1.05725454]
[1723688921972,0.361633,58364.0,58363.0,0.76225454]
[1723688921973,0.12176,58364.0,58363.0,0.76225454]
[1723688922221,0.001824,58364.0,58363.0,0.76225454]
[1723688922423,0.001824,58364.0,58363.0,0.83847999]
[1723688923386,0.001824,58364.0,58363.0,1.25341899]
[1723688924545,0.001824,58364.0,58363.0,1.13347999]
[1723688925101,0.001824,58364.0,58363.0,1.25341899]
[1723688926231,0.001824,58364.0,58363.0,1.49329699]
[1723688928852,0.001824,58364.0,58363.0,1.25341899]
[1723688929732,0.001824,58364.0,58363.0,1.49329699]
[1723688929957,0.001824,58364.0,58363.0,0.83847999]
[1723688930796,0.361633,58364.0,58363.0,0.76225454]
[1723688930997,0.361633,58364.0,58363.0,0.56425454]
[1723688931152,0.361633,58364.0,58363.0,0.001]
[1723688931153,0.841379,58364.0,58363.0,0.001]
[1723688933175,1.081252,58364.0,58363.0,0.001]
[1723688933377,2.14022962,58364.0,58363.0,0.001]
[1723688933590,2.24022962,58364.0,58363.0,0.001]
[1723688934391,0.119969,58349.0,58347.0,0.3745]
[1723688934585,0.119969,58349.0,58348.0,0.17155454]
[1723688935653,0.119965,58351.0,58348.0,0.17155454]
[1723688935829,0.119965,58351.0,58349.0,0.10292545]
[1723688936030,0.08577727,58362.0,58349.0,0.10292545]
[1723688936031,0.005824,58364.0,58352.0,0.1931]
[1723688936277,0.00927802,58363.0,58361.0,0.295]
[1723688936608,0.005824,58364.0,58363.0,0.375]
[1723688936816,0.005824,58364.0,58363.0,0.54655454]
[1723688936817,0.000824,58364.0,58363.0,0.54655454]
[1723688937529,0.000824,58364.0,58363.0,0.85419354]
[1723688937738,0.000824,58364.0,58363.0,0.73425454]
[1723688937945,0.000824,58364.0,58363.0,0.88676143]
[1723688938167,0.005824,58364.0,58363.0,1.12663943]
[1723688938369,0.005824,58364.0,58363.0,0.76682243]
[1723688938807,0.012824,58364.0,58363.0,0.76682243]
[1723688939024,0.012824,58364.0,58363.0,0.88676143]
[1723688939236,0.005824,58364.0,58363.0,0.88676143]
[1723688940285,0.012824,58364.0,58363.0,0.88676143]
[1723688942568,0.012824,58364.0,58363.0,1.38951743]
[1723688942772,0.012824,58364.0,58363.0,1.8151727]
[1723688942977,0.012824,58364.0,58363.0,1.9151727]
[1723688943156,0.012824,58364.0,58363.0,1.82939543]
[1723688943419,0.000824,58364.0,58363.0,1.72939543]
[1723688943803,0.000823,58379.0,58372.0,0.239838]
[1723688944010,0.000823,58379.0,58376.0,0.414911]
[1723688944194,0.000823,58379.0,58377.0,0.65006454]
[1723688944328,0.000823,58379.0,58377.0,0.53015454]
[1723688945132,0.014823,58379.0,58377.0,0.53015454]
[1723688945779,0.12918004,58378.0,58377.0,0.001]
[1723688945985,0.36899604,58378.0,58377.0,0.001]
[1723688946212,0.60881504,58378.0,58377.0,0.001]
[1723688946417,0.119916,58374.0,58373.0,0.0441138]
[1723688946624,0.359748,58374.0,58373.0,0.21566834]
[1723688948150,0.119913,58376.0,58373.0,0.21566834]
[1723688948464,0.119914,58375.0,58374.0,0.23036619]
[1723688949454,0.001,58376.0,58374.0,0.23036619]
[1723688949667,0.001,58376.0,58375.0,0.3853]
[1723688949668,0.360736,58376.0,58375.0,0.3853]
[1723688949872,0.60056,58376.0,58375.0,0.55685454]
[1723688950081,0.60156,58376.0,58375.0,0.64286254]
[1723688950513,0.60056,58376.0,58375.0,0.64286254]
[1723688951078,0.359736,58376.0,58375.0,0.25756254]
[1723688951287,0.240635,58379.0,58375.0,0.25756254]
[1723688951288,0.000823,58379.0,58377.0,0.119909]
[1723688951495,0.000823,58379.0,58378.0,0.68516254]
[1723688952113,0.000823,58379.0,58378.0,0.56525454]
[1723688952317,0.000823,58379.0,58378.0,0.64328999]
[1723688953006,0.000823,58379.0,58378.0,0.64428999]
[1723688953449,0.000823,58379.0,58378.0,0.98629799]
[1723688953658,0.000823,58379.0,58378.0,0.86638999]
[1723688953873,0.120729,58379.0,58378.0,0.84338999]
[1723688954076,0.120729,58379.0,58378.0,0.84738999]
[1723688954280,0.000823,58379.0,58378.0,0.84738999]
[1723688957716,0.120729,58379.0,58378.0,0.84738999]
[1723688958147,0.000823,58379.0,58378.0,0.84738999]
[1723688959015,0.120729,58379.0,58378.0,0.84738999]
[1723688959980,0.000823,58379.0,58378.0,0.84738999]
[1723688960823,0.120729,58379.0,58378.0,0.84738999]
[1723688962250,0.000823,58379.0,58378.0,0.84738999]
[1723688963287,0.120729,58379.0,58378.0,0.84738999]
[1723688964131,0.000823,58379.0,58378.0,0.84738999]
[1723688965758,0.120729,58379.0,58378.0,0.84738999]
[1723688966379,0.360541,58379.0,58378.0,0.84738999]
[1723688967202,0.120729,58379.0,58378.0,0.84738999]
[1723688967907,0.000823,58379.0,58378.0,0.84738999]
[1723688968476,0.120729,58379.0,58378.0,0.84738999]
[1723688969081,0.840165,58379.0,58378.0,0.005]
[1723688969291,2.06704847,58379.0,58378.0,0.005]
[1723688969494,2.297589,58379.0,58378.0,0.005]
[1723688969700,2.30685887,58379.0,58378.0,0.005]
[1723688969899,2.37818535,58379.0,58378.0,0.005]
[1723688970186,2.47818535,58379.0,58378.0,0.005]
[1723688970404,2.47818535,58379.0,58378.0,0.001]
[1723688970555,2.40685887,58379.0,58378.0,0.001]
[1723688970714,2.40685887,58379.0,58378.0,0.003]
[1723688970922,0.359803,58365.0,58364.0,0.0009053]
[1723688971119,0.36907287,58365.0,58364.0,0.17245984]
[1723688971365,0.36907287,58365.0,58364.0,0.21325582]
[1723688971539,0.359803,58365.0,58364.0,0.49205582]
[1723688971753,0.36907656,58365.0,58364.0,0.49205582]
[1723688972301,0.60994556,58365.0,58364.0,0.49305582]
[1723688972864,0.37007656,58365.0,58364.0,0.49305582]
[1723688973269,0.361803,58365.0,58364.0,0.49805582]
[1723688973487,0.002,58365.0,58364.0,0.68575582]
[1723688977690,0.002,58365.0,58364.0,0.77153309]
[1723688978014,0.000823,58379.0,58378.0,0.5191]
[1723688978325,0.000823,58379.0,58378.0,0.69065454]
[1723688978535,0.120729,58379.0,58378.0,0.69065454]
[1723688978942,0.000823,58379.0,58378.0,0.69065454]
[1723688979895,0.120729,58379.0,58378.0,0.45515454]
[1723688980100,0.120729,58379.0,58378.0,0.17155454]
[1723688980276,0.36981618,58379.0,58378.0,0.17155454]
[1723688980456,0.60962818,58379.0,58378.0,0.17155454]
[1723688980657,0.60962818,58379.0,58378.0,0.17255454]
[1723688981117,0.01009818,58379.0,58378.0,0.17255454]
[1723688981340,0.120729,58379.0,58378.0,0.50103999]
[1723688981473,0.36981644,58379.0,58378.0,0.50103999]
[1723688981674,0.600353,58379.0,58378.0,0.50103999]
[1723688982055,1.28155262,58379.0,58378.0,0.001]
[1723688982357,2.07155262,58379.0,58378.0,0.001]
[1723688982549,2.07155078,58379.0,58378.0,0.001]
[1723688982993,0.599632,58369.0,58368.0,0.2818]
[1723688983201,0.60890575,58369.0,58368.0,0.45335454]
[1723688983390,0.60890575,58369.0,58368.0,0.50649586]
[1723688984867,0.60890575,58369.0,58368.0,0.50949586]
[1723688985071,0.60890575,58369.0,58368.0,0.51049586]
[1723688985498,0.36905275,58369.0,58368.0,0.51049586]
[1723688985701,0.60890575,58369.0,58368.0,0.51049586]
[1723688986030,0.36905275,58369.0,58368.0,0.51049586]
[1723688986219,0.60890575,58369.0,58368.0,0.51049586]
[1723688987466,0.60972875,58369.0,58368.0,0.51049586]
[1723688988528,0.01009675,58369.0,58368.0,0.51049586]
[1723688988762,0.000823,58369.0,58368.0,0.83512386]
[1723688988877,0.000823,58369.0,58368.0,1.31483786]
[1723688989079,0.000823,58369.0,58368.0,1.17498086]
[1723688989950,0.000823,58369.0,58368.0,1.17398086]
[1723688990146,0.000823,58369.0,58368.0,1.41083786]
[1723688990300,0.000823,58369.0,58368.0,1.41183786]
[1723688990508,0.001823,58369.0,58368.0,1.42583786]
[1723688990710,0.001823,58369.0,58368.0,1.18498086]
[1723688991136,0.002823,58369.0,58368.0,1.19498086]
[1723688992118,0.002823,58369.0,58368.0,1.43483786]
[1723688992360,0.002823,58369.0,58368.0,1.19498086]
[1723688992562,0.002823,58369.0,58368.0,1.43483786]
[1723688992765,0.002823,58369.0,58368.0,1.19498086]
[1723688995760,0.002823,58369.0,58368.0,1.43483786]
[1723688996387,0.002823,58369.0,58368.0,0.71219586]